Cogmind - Beta 13 @@@ ROGUE MODE // 2024.03.31 @ 22:49:53 Player: Baxter Result: Destroyed by 8R-AWN with 8R-AWN's Boregun Performance ------------- Evolutions (1) 500 Regions Visited (5) 1000 Robots Destroyed (95) 475 Value Destroyed (1761) 1761 Prototype IDs (2) 40 Alien Tech Used (0) 0 Bonus (-97) -97 TOTAL SCORE: 3679 Bonus ------- High Alert Combat Kills 75 Friendly Fire -172 Cogmind --------- Core Integrity 0/400 Matter 103/300 Energy 235/280 System Corruption 2% Temperature Cool (9) Movement Treading (320) Ox2 Location -9/Exiles Parts ------- > --- POWER (1) -------- Heavy Ion Engine > --- PROPULSION (4) --- Improved Treads Improved Treads Wheel Armored Wheel > --- UTILITY (2) ------ Huge Storage Unit Hardened Light Armor Plating > --- WEAPON (2) ------- Autogun Autogun > --- INVENTORY (25) --- Heavy Ion Engine Heavy Ion Engine Light Nuclear Core Combat Airjet Medium Storage Unit Large Storage Unit High-capacity Matter Pod (200) High-capacity Matter Pod (129) Structural Scanner Improved Signal Interpreter Improved Terrain Scanner Seismic Detector Utility Shielding Light Armor Plating Hardened Light Armor Plating Hacking Suite Hacking Suite EX Chip 2 Makeshift Axe Peak State ------------ > --- POWER ------------ Heavy Ion Engine > --- PROPULSION ------- Improved Treads Improved Treads Wheel Armored Wheel > --- UTILITY ---------- Huge Storage Unit Seismic Detector > --- WEAPON ----------- Heavy Assault Rifle Makeshift Axe > --- INVENTORY -------- Heavy Ion Engine Heavy Ion Engine Heavy Ion Engine Light Nuclear Core Improved Treads Improved Treads Wheel Combat Airjet Medium Storage Unit Large Storage Unit High-capacity Matter Pod High-capacity Matter Pod Structural Scanner Improved Signal Interpreter Improved Terrain Scanner Utility Shielding Light Armor Plating Hardened Light Armor Plating Hardened Light Armor Plating Hacking Suite Hacking Suite Autogun Autogun Improved Grenade Launcher Improved Grenade Launcher [Rating: 23] Favorites ----------- Power Heavy Ion Engine Engine Heavy Ion Engine Power Core Light Nuclear Core Propulsion Improved Treads Treads Improved Treads Wheel Wheel Flight Unit Improved Flight Unit Utility Huge Storage Unit Device Seismic Detector Storage Huge Storage Unit Protection Hardened Light Armor Plating Weapon Light Assault Rifle Energy Gun EM Pulse Gun Ballistic Gun Light Assault Rifle Launcher Grenade Launcher Impact Weapon Maul Slashing Weapon Makeshift Axe Build | -11 -10 -10 -9 -9 -9 ------- Run | Yrd Mat Min Mat Min Exi Slots Evolved 2 | . . . 2 . . Power . | . . . . . . Propulsion 2 | . . . 2 . . Utility . | . . . . . . Weapon . | . . . . . . Parts Attached 105 | 8 22 9 52 5 9 Power 8 | 1 3 2 1 . 1 Engine 7 | 1 3 1 1 . 1 Core 1 | . . 1 . . . Reactor . | . . . . . . Propulsion 28 | 2 2 4 16 1 3 Treads 12 | 2 . 1 7 . 2 Leg . | . . . . . . Wheel 15 | . 2 3 8 1 1 Hover . | . . . . . . Flight 1 | . . . 1 . . Utility 17 | 2 3 . 10 1 1 Device 7 | 1 . . 5 1 . Storage 3 | 1 2 . . . . Processor . | . . . . . . Hackware . | . . . . . . Protection 7 | . 1 . 5 . 1 Artifact . | . . . . . . Weapon 52 | 3 14 3 25 3 4 Energy Gun 13 | 3 5 . 5 . . Energy Cannon . | . . . . . . Ballistic Gun 26 | . 6 1 16 1 2 Ballistic Cannon . | . . . . . . Launcher 9 | . 3 2 1 1 2 Special Weapon . | . . . . . . Impact Weapon 3 | . . . 3 . . Slashing Weapon 1 | . . . . 1 . Piercing Weapon . | . . . . . . Special Melee Weapon . | . . . . . . Unidentified Prototypes 2 | . . . 2 . . Parts Lost 19 | . 2 4 6 . 7 Power 2 | . . 1 . . 1 Propulsion 9 | . 1 1 4 . 3 Utility 1 | . . . 1 . . Weapon 7 | . 1 2 1 . 3 Highest Loss Streak 7 | . 1 2 2 . 7 To Critical Strikes 2 | . . . . . 2 Average Slot Usage (%) 98 | . 99 96 99 100 93 Engine 11 | . 14 11 11 11 9 Treads 19 | . 19 9 21 22 20 Wheel 17 | . 7 17 22 22 20 Device 5 | . 11 . 1 10 9 Storage 12 | . 14 14 11 11 11 Protection 6 | . 2 14 9 . 1 Energy Gun 2 | . 5 . 2 . . Ballistic Gun 18 | . 22 14 16 19 11 Launcher 2 | . . 11 . . 2 Naked Turns . | . . . . . . Heaviest Build 99 | 14 94 95 99 97 95 Greatest Support 46 | 40 40 26 46 22 22 Greatest Overweight (x) 9 | . 9 9 9 4 7 Average Overweight (x) 4 | . 3 7 3 4 4 Largest Inventory Capacity 25 | 8 25 25 25 25 25 Average Capacity 22 | 7 16 25 25 25 25 Most Carried 25 | 8 25 25 25 25 25 Average Carried 21 | 5 13 24 24 25 24 Final Capacity 25 | 8 25 25 25 25 25 Final Carried 25 | 7 25 24 25 25 19 Class Distribution -------------------- 87% | Mutant 12% | Scavenger-Mutant Dominant Class ---------------- Mutant | -10/Materials Mutant | -10/Mines Mutant | -9/Materials Mutant | -9/Mines Mutant | -9/Exiles Resources | -11 -10 -10 -9 -9 -9 ----------- Run | Yrd Mat Min Mat Min Exi Matter Collected 2731 | 211 594 496 1119 311 . Remotely . | . . . . . . Salvage Created 3089 | 136 870 52 1895 90 46 Parts 201 | 8 51 . 116 16 10 Haulers Intercepted 8 | . 2 . 6 . . Recyclers Shooed 3 | . . . 3 . . Parts Field Recycled . | . . . . . . Retrieved Matter . | . . . . . . Parts Self-Destructed . | . . . . . . Prevented . | . . . . . . Kills | -11 -10 -10 -9 -9 -9 ------- Run | Yrd Mat Min Mat Min Exi Combat Hostiles Destroyed 76 | . 17 17 30 5 7 Guns 39 | . 9 . 25 3 2 AOE 34 | . 7 17 3 2 5 Classes Destroyed 13 | 2 8 1 2 . . Worker 8 | . 1 . 6 1 . Builder 6 | . 2 . 3 1 . Tunneler 2 | 2 . . . . . Hauler 8 | . 2 . 6 . . Recycler 5 | 1 2 . 2 . . Mechanic 1 | . 1 . . . . Operator 7 | . 2 . 5 . . Watcher 4 | . 1 . 3 . . Swarmer 17 | . 6 . 6 5 . Grunt 23 | . 11 . 12 . . Brawler 2 | . . . 2 . . Sentry 10 | . . . 10 . . Assembled 24 | . . 17 . . 7 Best Kill Streak 9 | 2 6 7 8 4 9 Combat Bots Only 7 | . 6 7 3 3 4 Max Kills in Single Turn 4 | 1 3 2 3 2 4 Gunslinging 1 | . . . . 1 . Exploded 4 | . 3 2 1 1 4 Melee . | . . . . . . Uniques/NPCs Destroyed 2 | . . . . . 2 EX-HEX (-9/Exiles) EX-BIN (-9/Exiles) Combat | -11 -10 -10 -9 -9 -9 -------- Run | Yrd Mat Min Mat Min Exi Hostile Shots Fired 371 | . 82 19 164 29 77 Missed 100 | . 21 5 36 11 27 Damage Taken 3867 | . 762 281 1750 148 926 Core 572 | . 153 10 219 10 180 Absorbed by Shields . | . . . . . . Core Remaining (%) 67 | 100 . 34 . . . Volleys Fired 335 | 10 110 33 162 7 13 Largest 2 | 2 2 2 2 2 2 Hottest 80 | 80 80 40 80 46 46 Shots Fired 569 | 11 209 36 281 12 20 Gun 523 | 11 205 6 278 10 13 Cannon . | . . . . . . Launcher 46 | . 4 30 3 2 7 Special . | . . . . . . Kinetic 426 | . 171 6 226 10 13 Thermal 18 | 9 9 . . . . Explosive 46 | . 4 30 3 2 7 Electromagnetic 79 | 2 25 . 52 . . Robot Hit Streak 19 | 11 19 3 19 7 8 Robot Miss Streak 7 | . 5 7 7 6 5 Penetration Max . | . . . . . . Secondary Targets 3 | . 1 . 1 1 . Max Gunslinging Chain 1 | . 1 . 1 1 . Shots Hit Robots 377 | 11 126 13 208 6 13 Core Hits 188 | 4 58 27 76 7 16 Critical Kills 4 | . 2 . 2 . . Critical Parts Destroyed 4 | . 1 . 3 . . Critical Strikes 8 | . 3 . 5 . . Destroy 5 | . 3 . 2 . . Smash 3 | . . . 3 . . Melee Attacks 13 | . . . 10 3 . Impact 10 | . . . 10 . . Slashing 3 | . . . . 3 . Piercing . | . . . . . . Sneak Attacks 5 | . . . 3 2 . Combat Hostiles . | . . . . . . Follow-up Attacks . | . . . . . . Damage Inflicted 6988 | 128 1558 1021 3211 374 696 Guns 4112 | 128 1142 7 2682 44 109 Cannons . | . . . . . . Explosions 2420 | . 406 1014 229 184 587 Melee 430 | . . . 284 146 . Ramming 26 | . 10 . 16 . . Kinetic 3256 | . 852 7 2244 44 109 Thermal 285 | 100 185 . . . . Explosive 2293 | . 279 1014 229 184 587 Electromagnetic 698 | 28 232 . 438 . . Impact 284 | . . . 284 . . Slashing 146 | . . . . 146 . Piercing . | . . . . . . Highest Corruption 2 | . 1 1 2 2 2 Average Corruption 1 | . 1 1 2 2 2 Corruption Purged . | . . . . . . Corruption Blocked . | . . . . . . Effects 31 | . 7 9 . 13 2 Message Errors 10 | . 3 3 . 4 . Matter Fused 5 | . . . . 5 . Heat Flow Errors 3 | . . 2 . 1 . Energy Discharges 4 | . . 2 . 1 1 Data Loss (minor) 4 | . 1 2 . 1 . Data Loss (major) 2 | . 2 . . . . Misfires 2 | . 1 . . . 1 Alerts 1 | . . . . 1 . Overload Shots . | . . . . . . Overflow Damage 302 | . 8 68 203 . 23 Projectiles . | . . . . . . Explosions 101 | . 8 68 2 . 23 Melee 201 | . . . 201 . . Knockbacks 1 | . . . 1 . . Impact 1 | . . . 1 . . Kinetic . | . . . . . . Secondary . | . . . . . . Self-Inflicted Damage 378 | . 96 112 25 . 145 Shots 10 | . 2 3 1 . 4 Rammed 3 | . 1 . 2 . . Targets Rammed 4 | . 1 . 3 . . Kicked . | . . . . . . Crushed 1 | . . . 1 . . Highest Temperature 400 | 18 283 261 400 145 31 Average Temperature 56 | 12 93 34 54 33 13 Received Heat Transfer 1003 | . 309 . 654 . 40 Effects 1 | . . . 1 . . Shutdowns 1 | . . . 1 . . Siege Activations . | . . . . . . Robots Corrupted 3 | . 1 . 2 . . Combat Hostiles 3 | . 1 . 2 . . Parts Fried 11 | . . . 11 . . Impact Corruptions 7 | . . . 7 . . Robots Melted . | . . . . . . Combat Hostiles . | . . . . . . Parts Melted . | . . . . . . Heat Transferred 600 | 225 375 . . . . Parts Sabotaged . | . . . . . . Parts Stolen . | . . . . . . Parts Stripped . | . . . . . . Power Chain Reactions 2 | . 2 . . . . Alert | -11 -10 -10 -9 -9 -9 ------- Run | Yrd Mat Min Mat Min Exi Peak Influence 560 | 15 273 208 560 218 . Initial 156 | . 9 33 1 156 . Average 187 | 5 134 39 337 113 . Maximum Alert Level 2 | . 1 1 2 1 . Low Security (%) 57 | 100 72 97 24 61 . Level 1 25 | . 27 2 29 38 . Level 2 17 | . . . 46 . . Level 3 . | . . . . . . Level 4 . | . . . . . . Level 5 . | . . . . . . High Security . | . . . . . . Max Security . | . . . . . . Squads Dispatched 8 | . 5 . 3 . . Investigation 3 | . 2 . 1 . . Extermination . | . . . . . . Reinforcement 5 | . 3 . 2 . . Assault . | . . . . . . Garrison . | . . . . . . Intercept . | . . . . . . Searches Triggered . | . . . . . . Construction Impeded . | . . . . . . Haulers Reinforced . | . . . . . . Active Scanning Responses . | . . . . . . Cargo Convoy Interrupts . | . . . . . . Stealth | -11 -10 -10 -9 -9 -9 --------- Run | Yrd Mat Min Mat Min Exi Distress Signals 6 | . 1 . 5 . . Communications Jammed . | . . . . . . Distress Signals . | . . . . . . Times Spotted 123 | . 40 19 49 7 8 Peak Tracking Total 9 | . 5 3 5 4 9 Tactical Retreats 6 | . 1 2 3 . . Traps | -11 -10 -10 -9 -9 -9 ------- Run | Yrd Mat Min Mat Min Exi Traps Triggered 4 | . 2 . 2 . . Indirectly . | . . . . . . Trap Hack Attempts . | . . . . . . Triggered . | . . . . . . Disarmed . | . . . . . . Reprogrammed . | . . . . . . Reused . | . . . . . . Traps Extracted . | . . . . . . Installed . | . . . . . . Triggered 1 | . . . 1 . . Machines | -11 -10 -10 -9 -9 -9 ---------- Run | Yrd Mat Min Mat Min Exi Machines Disabled 5 | . 2 . 1 . 2 Max in Single Turn 2 | . 2 . 1 . 1 Machines Repaired . | . . . . . . Machines Dismantled . | . . . . . . Machines Sabotaged . | . . . . . . Overloaded Fab Kills . | . . . . . . Hacking | -11 -10 -10 -9 -9 -9 --------- Run | Yrd Mat Min Mat Min Exi Machines Accessed 16 | . 5 1 10 . . Terminals 16 | . 5 1 10 . . Fabricators . | . . . . . . Repair Stations . | . . . . . . Recycling Units . | . . . . . . Scanalyzers . | . . . . . . Garrison Access . | . . . . . . Total Hacks 43 | . 16 1 26 . . Successful 20 | . 5 1 14 . . Failed 22 | . 10 . 12 . . Catastrophic 2 | . . . 2 . . Database Lockouts 1 | . 1 . . . . Manual 42 | . 16 1 25 . . Terminals 43 | . 16 1 26 . . Fabricators . | . . . . . . Repair Stations . | . . . . . . Recycling Units . | . . . . . . Scanalyzers . | . . . . . . Garrison Access . | . . . . . . Terminal Hacks 4 | . 1 . 3 . . Record 1 | . . . 1 . . Robot Analysis 2 | . 1 . 1 . . Unreport Threat 1 | . . . 1 . . Fabricator Hacks . | . . . . . . Repair Station Hacks . | . . . . . . Recycling Unit Hacks . | . . . . . . Scanalyzer . | . . . . . . Garrison Access Hacks . | . . . . . . Unauthorized Hacks 16 | . 4 1 11 . . Terminals 16 | . 4 1 11 . . Assimilate 3 | . . . 3 . . Botnet 12 | . 4 1 7 . . Operators 1 | . . . 1 . . Fabricators . | . . . . . . Repair Stations . | . . . . . . Recycling Units . | . . . . . . Scanalyzers . | . . . . . . Garrison Access . | . . . . . . Data Cores Recovered . | . . . . . . Used . | . . . . . . Hacking Detections 14 | . 5 . 9 . . Full Trace Events 1 | . 1 . . . . Feedback Events . | . . . . . . Feedback Blocked . | . . . . . . Robot Schematics Acquired . | . . . . . . Robots Built . | . . . . . . Authchips . | . . . . . . Time . | . . . . . . Total Robot Build Rating . | . . . . . . Part Schematics Acquired . | . . . . . . Parts Built . | . . . . . . Authchips . | . . . . . . Time . | . . . . . . Total Part Build Rating . | . . . . . . Parts Repaired . | . . . . . . Time . | . . . . . . Parts Recycled . | . . . . . . Recycled Matter . | . . . . . . Retrieved Matter . | . . . . . . Retrieved Components . | . . . . . . Parts Scanalyzed . | . . . . . . Part Schematics Acquired . | . . . . . . Parts Damaged . | . . . . . . Bothacking | -11 -10 -10 -9 -9 -9 ------------ Run | Yrd Mat Min Mat Min Exi Used RIF Installer . | . . . . . . Robots Hacked . | . . . . . . Non-combat . | . . . . . . Combat . | . . . . . . Robot Hacks Applied . | . . . . . . Relay Couplers Released . | . . . . . . Fabnet Peak Effective % . | . . . . . . Robots Rewired . | . . . . . . Allies Hacked . | . . . . . . Hacks Repelled . | . . . . . . Allies | -11 -10 -10 -9 -9 -9 -------- Run | Yrd Mat Min Mat Min Exi Total Allies 4 | . . 1 3 . . Largest Group 1 | . . 1 1 . . Highest-Rated Group 31 | . . 31 10 . . Highest-Rated Ally 31 | . . 31 10 . . Total Orders . | . . . . . . Ally Attacks . | . . . . . . Total Damage . | . . . . . . Kills . | . . . . . . Allies Corrupted . | . . . . . . Allies Melted . | . . . . . . Intel | -11 -10 -10 -9 -9 -9 ------- Run | Yrd Mat Min Mat Min Exi Robot Analysis Total 2 | . 1 . 1 . . Derelict Logs Recovered 3 | . . 1 . 2 . Drone Launches . | . . . . . . Drone Recoveries . | . . . . . . Exploration | -11 -10 -10 -9 -9 -9 ------------- Run | Yrd Mat Min Mat Min Exi Turns Passed 6293 | 135 1660 1023 2296 1039 140 Spaces Moved 3148 | 60 735 492 1101 691 69 Core 3 | 3 . . . . . Treads 413 | 57 333 . 23 . . Legs . | . . . . . . Wheels 2732 | . 402 492 1078 691 69 Hover . | . . . . . . Flight . | . . . . . . Fastest Speed 50 | 50 95 135 125 145 130 Average Speed 158 | 154 168 190 147 145 145 Slowest Speed 480 | 160 215 215 480 145 195 Overloaded Moves . | . . . . . . Propulsion Burnouts . | . . . . . . Robots Hopped . | . . . . . . Cave-ins Triggered . | . . . . . . Exploration Rate (%) 68 | 4 94 100 85 98 29 Regions Visited 5 Branch Regions 3 Pre-discovered Areas 1 | . . . . 1 . Known Exits Taken 1 | . . 1 . . . Unknown Exits Taken 4 | 1 1 . 1 1 . Scrap Searched 4 | . . 2 . 2 . Spaces Dug 18 | . . 13 4 1 . Terrain Destroyed 330 | . 35 241 18 24 12 Melee 5 | . . . 4 1 . Projectile . | . . . . . . AOE 325 | . 35 241 14 23 12 Terrain Rammed . | . . . . . . Walls Destroyed . | . . . . . . Machines Disabled . | . . . . . . Actions | -11 -10 -10 -9 -9 -9 --------- Run | Yrd Mat Min Mat Min Exi Total 3931 | 88 976 549 1510 715 93 Wait 221 | . 84 . 131 5 1 Move 3143 | 59 734 491 1100 690 69 Hop . | . . . . . . Pick Up 61 | 9 19 6 24 2 1 Fast Attach 13 | 7 1 3 2 . . Attach 21 | . 2 3 9 . 7 Detach . | . . . . . . Swap 71 | 1 19 3 41 5 2 Drop 47 | 2 6 8 28 3 . Fire 335 | 10 110 33 162 7 13 Melee 13 | . . . 10 3 . Ram 2 | . 1 . 1 . . Kick . | . . . . . . Crush 2 | . . . 2 . . Escape Stasis . | . . . . . . Rewire 2 | . . 2 . . . Trap . | . . . . . . Miscellaneous . | . . . . . . Route ------- -11/Scrapyard -10/Materials (discovered 4 exits: *Mat x3 / *Min) -10/Mines (discovered 2 exits: *Mat x2) -9/Materials (discovered 4 exits: [*Mat x2] / [*Min x2]) -9/Mines (discovered 4 exits: [*Mat x2] / [*Exi] / [*Zio]) -9/Exiles (discovered 1 exit: [*Min]) History --------- Turn | Location | Event 8 | -11/Scrapyard | Discovered new exit (range 16) 136 | -11/Scrapyard | Entered Materials 295 | -10/Materials | Discovered new exit (range 16) 469 | -10/Materials | Discovered new exit (range 11) 795 | -10/Materials | Build established: Mutant 1114 | -10/Materials | Discovered new exit (range 14) 1499 | -10/Materials | Central database locked down 1561 | -10/Materials | Core integrity fell below 50% 1610 | -10/Materials | Discovered new exit (range 8) 1796 | -10/Materials | Entered Mines 1797 | -10/Mines | Assembled infested the area 1802 | -10/Mines | Assisted by a Guerilla fighting off Assembled 1803 | -10/Mines | Received a Rocket Launcher from a helpful Derelict 2108 | -10/Mines | Destroyed 7 combat bots 2235 | -10/Mines | Destroyed 7 combat bots 2249 | -10/Mines | Received a Mining Laser from a helpful Derelict 2688 | -10/Mines | Discovered new exit (range 6) 2694 | -10/Mines | Identified exit to Materials 2819 | -10/Mines | Entered Materials 2819 | -9/Materials | Evolved 2 slots: Propulsion x2 2851 | -9/Materials | Discovered new exit (range 13) 3543 | -9/Materials | Discovered new exit (range 16) 3666 | -9/Materials | Discovered new exit (range 13) 3878 | -9/Materials | Core integrity fell below 50% 4529 | -9/Materials | Discovered new exit (range 16) 5115 | -9/Materials | Entered Mines 5364 | -9/Mines | A weapon hastily lodged in a ceiling crevice suddenly fell to the ground 5420 | -9/Mines | Discovered new exit (range 9) 5788 | -9/Mines | Deemed a non-threat by the Exiles lab entrance 5788 | -9/Mines | Discovered new exit (range 5) 5819 | -9/Mines | Learned Materials terminal intel 5890 | -9/Mines | Discovered new exit (range 6) 5898 | -9/Mines | A Derelict revealed a hidden shortcut to a safe place 6154 | -9/Mines | Entered Exiles 6173 | -9/Exiles | Discovered new exit (range 15) 6191 | -9/Exiles | Met 8R-AWN 6214 | -9/Exiles | Met EX-HEX 6238 | -9/Exiles | Attacked by the Exiles 6246 | -9/Exiles | Destroyed EX-HEX 6257 | -9/Exiles | Destroyed EX-BIN 6263 | -9/Exiles | Core integrity fell below 20% 6294 | -9/Exiles | Destroyed by 8R-AWN with 8R-AWN's Boregun Last Messages --------------- 06279_ Penetrated by HV Slug. 06279_ HV Slug penetrates Wall. 06279_ Penetrated by HV Slug. 06279_ HV Slug penetrates Wall. 06281_ as-56535 destroyed. 06282_ Penetrated by HV Slug. 06282_ HV Slug penetrates Wall. 06283_ as-89132 destroyed. 06285_ HV Slug penetrates Earth. 06285_ Penetrated by HV Slug. 06285_ HV Slug penetrates Wall. 06287_ Penetrated by HV Slug. 06287_ HV Slug penetrates Wall. 06287_ HV Slug penetrates Earth. 06289_ HV Slug penetrates Machine. 06289_ Penetrated by HV Slug. 06289_ HV Slug penetrates Wall. 06291_ HV Slug penetrates Earth. 06294_ Wall collapses. 06294_ Penetrated by HV Slug. Map ----- +----------------------------------------------------+ | ?????????????????????????????????????????????????? | | ?????????????????????????????????????????????????? | | ?????????????????????????????????????????????????? | | ?????????????????????????????????????????????????? | | ?????????????????????????????????????????????????? | | ?????????????????????????????????????????????????? | | ?????????????????????????????????????????????????? | | ?????????????????????????????????????????????????? | | ?????????????????????????????????????????????????? | | ????????????????????????? ????????????????????? | | ????????????????????????" ????????????????????? | | ????????????????????????" ???????????????????? | | ???????????????????????#" #???????????????????? | | ???????????????????????"" #???????????????????? | | ?????????????????####?"" #???????????????????? | | ?????????????????""""""" ##??????????????????? | | ??????????????"?""" " "" ##????####?###?????? | | ??????????????" """ " #####"""""""""????? | | ???????????? " " " """ """"#??? | | ???????????? "" " #?? | | ???????????? " """#?? | | ??????????? " "#?? | | ??????????? " "##? | | ???????????? ""## | | ????????????????? % """ | | ?????????????????????##; @ = " | | ??????????????????????#### % % g | | ??????????????????????????# # * | | ???????????????????????????## | | ?????????????????????????????## | | ?????????????????????????????#""" | | ???????????????????????????""" | | ??????????????????????????"" | | ????????????????????????? | | ???????????????????????? | | ???????????????????????? " | | ???????????????????????? "" """ " | | ????????????????????????? ##""" " " ""#" " | | ????????????????????????? ???####""" """##"""""""# | | ????????????????????????????????###""""#?######### | | ??????????????????????????????????#####??????????? | | ?????????????????????????????????????????????????? | | ?????????????????????????????????????????????????? | | ?????????????????????????????????????????????????? | | ?????????????????????????????????????????????????? | | ?????????????????????????????????????????????????? | | ?????????????????????????????????????????????????? | | ?????????????????????????????????????????????????? | | ?????????????????????????????????????????????????? | | ?????????????????????????????????????????????????? | +----------------------------------------------------+ Best States ------------- Heat Dissipation 28 Energy Generation 14 Energy Capacity 280 Matter Stores 300 Matter Capacity 300 Sight Range 16 Terrain Scan Density 10 Armor Coverage 150 Evasion (%) 41 Recoil Reduction 2 Item Schematics ----------------- None Robot Schematics ------------------ None Fabricated ------------ Nothing Alien Tech Used ----------------- None Achievements -------------- None Challenges ------------ None Game ------ Seed WeightRelayDriver Manual? 0 Play Time 00:44:01 Cumulative 78.0 hours Start 2024.03.31 @ 22:07:09 End 2024.03.31 @ 22:49:53 Sessions 1 Manual Loads 0 Difficulty Rogue Special Mode None Game No. 77 Rogue 77 Adventurer 0 Explorer 0 Win Type - Total 1 Types 1/0/0/0/0/0/0/0/0 Lore% 37 Gallery% 47 Achievement% 36 Wizard Run 0 Options --------- Layout 1 ASCII 0 Keyboard 0 Movement Numpad Keybinds 0 Fullscreen 2 Font 24/X11 Map View 50x35 Zoom Use 0% Tactical HUD 1 Map Filters NONE Filters NONE Steam 0 RUN: 41365428-253f-4678-9f2c-1b25e8a3b8b7